[Event "December 12 Early 2023"]
[Site "https://www.chess.com"]
[Date "2023.12.12"]
[Round "8"]
[White "Barbot, Pierre"]
[Black "Subramanian, Anusha"]
[Result "0-1"]
[Board "153"]
[TimeControl "180+1"]
[WhiteFideId "663727"]
[BlackFideId "477710"]
[WhiteElo "2305"]
[BlackElo "2058"]
[WhiteTeam "FRA"]
[BlackTeam "ENG"]
[WhiteClock "0:00:00"]
[BlackClock "0:00:04"]

1. e4 {[%clk 0:03:00]}  c6 {[%clk 0:02:58]} 2. d4 {[%clk 0:02:58]}  d5 {[%clk 0:02:58]} 3. e5 {[%clk 0:02:59]}  Bf5 {[%clk 0:02:57]} 4. h4 {[%clk 0:02:58]}  h5 {[%clk 0:02:56]} 5. Bd3 {[%clk 0:02:58]}  Bxd3 {[%clk 0:02:56]} 6. Qxd3 {[%clk 0:02:59]}  e6 {[%clk 0:02:56]} 7. Bg5 {[%clk 0:02:45]}  Qb6 {[%clk 0:02:53]} 8. Nd2 {[%clk 0:02:36]}  c5 {[%clk 0:02:48]} 9. c4 {[%clk 0:02:20]}  Ne7 {[%clk 0:02:29]} 10. Ne2 {[%clk 0:01:57]}  Nbc6 {[%clk 0:02:14]} 11. cxd5 {[%clk 0:01:47]}  Nxd5 {[%clk 0:02:13]} 12. Nc4 {[%clk 0:01:46]}  Qc7 {[%clk 0:02:01]} 13. dxc5 {[%clk 0:01:39]}  Bxc5 {[%clk 0:02:02]} 14. O-O {[%clk 0:01:36]}  O-O {[%clk 0:01:58]} 15. Rac1 {[%clk 0:01:27]}  Be7 {[%clk 0:01:46]} 16. Bxe7 {[%clk 0:01:21]}  Qxe7 {[%clk 0:01:47]} 17. Qg3 {[%clk 0:01:14]}  g6 {[%clk 0:01:44]} 18. Nd6 {[%clk 0:01:08]}  Rfd8 {[%clk 0:01:39]} 19. Ne4 {[%clk 0:00:58]}  Rac8 {[%clk 0:01:28]} 20. N2c3 {[%clk 0:00:52]}  Nxc3 {[%clk 0:01:17]} 21. Rxc3 {[%clk 0:00:53]}  Nd4 {[%clk 0:01:16]} 22. Nf6+ {[%clk 0:00:51]}  Kh8 {[%clk 0:01:12]} 23. Re1 {[%clk 0:00:50]}  Rxc3 {[%clk 0:01:03]} 24. bxc3 {[%clk 0:00:51]}  Nf5 {[%clk 0:00:48]} 25. Qg5 {[%clk 0:00:51]}  Qf8 {[%clk 0:00:38]} 26. g4 {[%clk 0:00:38]}  hxg4 {[%clk 0:00:37]} 27. Nxg4 {[%clk 0:00:37]}  Rd7 {[%clk 0:00:23]} 28. h5 {[%clk 0:00:37]}  Qg7 {[%clk 0:00:19]} 29. h6 {[%clk 0:00:22]}  Qf8 {[%clk 0:00:15]} 30. Kg2 {[%clk 0:00:21]}  Rc7 {[%clk 0:00:12]} 31. Qf6+ {[%clk 0:00:20]}  Kh7 {[%clk 0:00:12]} 32. Rh1 {[%clk 0:00:21]}  Rxc3 {[%clk 0:00:11]} 33. Qg5 {[%clk 0:00:17]}  Rd3 {[%clk 0:00:07]} 34. Nf6+ {[%clk 0:00:17]}  Kh8 {[%clk 0:00:08]} 35. Qc1 {[%clk 0:00:14]}  Rd8 {[%clk 0:00:06]} 36. Qc7 {[%clk 0:00:14]}  Qe7 {[%clk 0:00:03]} 37. Qc3 {[%clk 0:00:09]}  Nd4 {[%clk 0:00:03]} 38. Qg3 {[%clk 0:00:07]}  Nf5 {[%clk 0:00:03]} 39. Qg5 {[%clk 0:00:06]}  Nd4 {[%clk 0:00:04]} 40. Qf4 {[%clk 0:00:06]}  Nf5 {[%clk 0:00:04]} 41. h7 {[%clk 0:00:05]}  Rd4 {[%clk 0:00:04]} 42. Qh6 {[%clk 0:00:05]}  Nxh6 {[%clk 0:00:03]} 43. Rxh6 {[%clk 0:00:04]}  Rd8 {[%clk 0:00:04]} 44. Ne4 {[%clk 0:00:03]}  Qb4 {[%clk 0:00:04]} 45. Ng5 {[%clk 0:00:00]}  Qf4 {[%clk 0:00:04]} 0-1

[Event "December 12 Early 2023"]
[Site "https://www.chess.com"]
[Date "2023.12.12"]
[Round "8"]
[White "Rose, Felix"]
[Black "Saim, Mohamed Ilias"]
[Result "1-0"]
[Board "154"]
[TimeControl "180+1"]
[WhiteFideId "5105722"]
[BlackFideId "7900465"]
[WhiteElo "2299"]
[BlackElo "2051"]
[WhiteTeam "MEX"]
[BlackTeam "ALG"]
[WhiteClock "0:00:57"]
[BlackClock "0:00:02"]

1. e4 {[%clk 0:02:59]}  c6 {[%clk 0:03:00]} 2. d4 {[%clk 0:03:00]}  d5 {[%clk 0:03:01]} 3. e5 {[%clk 0:03:00]}  Bf5 {[%clk 0:03:01]} 4. h4 {[%clk 0:03:01]}  h5 {[%clk 0:03:01]} 5. Bd3 {[%clk 0:03:01]}  Bxd3 {[%clk 0:03:01]} 6. Qxd3 {[%clk 0:03:02]}  Qa5+ {[%clk 0:03:02]} 7. Bd2 {[%clk 0:03:00]}  Qa6 {[%clk 0:03:02]} 8. e6 {[%clk 0:03:00]}  Qxd3 {[%clk 0:02:57]} 9. exf7+ {[%clk 0:02:57]}  Kxf7 {[%clk 0:02:58]} 10. cxd3 {[%clk 0:02:57]}  Nd7 {[%clk 0:02:51]} 11. Nf3 {[%clk 0:02:58]}  Nh6 {[%clk 0:02:45]} 12. O-O {[%clk 0:02:55]}  Nf5 {[%clk 0:02:17]} 13. Re1 {[%clk 0:02:55]}  g6 {[%clk 0:02:15]} 14. g3 {[%clk 0:02:55]}  Bh6 {[%clk 0:02:09]} 15. Bg5 {[%clk 0:02:50]}  Rhe8 {[%clk 0:01:59]} 16. Nc3 {[%clk 0:02:34]}  Bg7 {[%clk 0:01:59]} 17. Ne5+ {[%clk 0:02:29]}  Nxe5 {[%clk 0:01:54]} 18. dxe5 {[%clk 0:02:30]}  e6 {[%clk 0:01:49]} 19. a4 {[%clk 0:02:26]}  Nd4 {[%clk 0:01:44]} 20. Red1 {[%clk 0:01:47]}  Bxe5 {[%clk 0:01:27]} 21. Be3 {[%clk 0:01:42]}  Nc2 {[%clk 0:01:18]} 22. Rac1 {[%clk 0:01:41]}  Nxe3 {[%clk 0:01:09]} 23. fxe3 {[%clk 0:01:41]}  Bxc3 {[%clk 0:01:05]} 24. bxc3 {[%clk 0:01:37]}  Kg7 {[%clk 0:01:03]} 25. Rb1 {[%clk 0:01:36]}  b6 {[%clk 0:01:01]} 26. a5 {[%clk 0:01:36]}  b5 {[%clk 0:01:01]} 27. c4 {[%clk 0:01:36]}  a6 {[%clk 0:00:58]} 28. Rdc1 {[%clk 0:01:35]}  Rac8 {[%clk 0:00:48]} 29. Rc2 {[%clk 0:01:31]}  Red8 {[%clk 0:00:43]} 30. cxb5 {[%clk 0:01:25]}  cxb5 {[%clk 0:00:39]} 31. Rbc1 {[%clk 0:01:25]}  Rxc2 {[%clk 0:00:33]} 32. Rxc2 {[%clk 0:01:26]}  Rd6 {[%clk 0:00:33]} 33. Rc7+ {[%clk 0:01:24]}  Kf6 {[%clk 0:00:33]} 34. Rb7 {[%clk 0:01:23]}  e5 {[%clk 0:00:24]} 35. d4 {[%clk 0:01:19]}  exd4 {[%clk 0:00:23]} 36. exd4 {[%clk 0:01:20]}  Kf5 {[%clk 0:00:23]} 37. Kg2 {[%clk 0:01:07]}  Ke4 {[%clk 0:00:23]} 38. Rb6 {[%clk 0:01:07]}  Rd7 {[%clk 0:00:14]} 39. Rxa6 {[%clk 0:01:07]}  Kxd4 {[%clk 0:00:14]} 40. Rxg6 {[%clk 0:01:08]}  Kc4 {[%clk 0:00:11]} 41. Rc6+ {[%clk 0:00:59]}  Kb4 {[%clk 0:00:09]} 42. a6 {[%clk 0:01:00]}  d4 {[%clk 0:00:08]} 43. Rb6 {[%clk 0:00:58]}  d3 {[%clk 0:00:08]} 44. Rb7 {[%clk 0:00:58]}  Rd6 {[%clk 0:00:04]} 45. a7 {[%clk 0:00:58]}  Ra6 {[%clk 0:00:01]} 46. Rd7 {[%clk 0:00:55]}  Kc3 {[%clk 0:00:01]} 47. Kf3 {[%clk 0:00:56]}  Rxa7 {[%clk 0:00:01]} 48. Rxa7 {[%clk 0:00:55]}  d2 {[%clk 0:00:02]} 49. Rc7+ {[%clk 0:00:55]}  Kd3 {[%clk 0:00:01]} 50. Rd7+ {[%clk 0:00:55]}  Kc2 {[%clk 0:00:01]} 51. Ke2 {[%clk 0:00:56]}  b4 {[%clk 0:00:02]} 52. Rxd2+ {[%clk 0:00:56]}  Kc1 {[%clk 0:00:02]} 53. Rd5 {[%clk 0:00:56]}  b3 {[%clk 0:00:03]} 54. Rxh5 {[%clk 0:00:57]}  b2 {[%clk 0:00:04]} 55. Rc5+ {[%clk 0:00:57]}  Kb1 {[%clk 0:00:04]} 56. h5 {[%clk 0:00:57]}  Ka1 {[%clk 0:00:02]} 57. Ra5+ {[%clk 0:00:57]} 1-0

[Event "December 12 Early 2023"]
[Site "https://www.chess.com"]
[Date "2023.12.12"]
[Round "8"]
[White "Skurikhin, Dmitrij"]
[Black "Kniazev, Igor"]
[Result "0-1"]
[Board "158"]
[TimeControl "180+1"]
[WhiteFideId "4161297"]
[BlackFideId "4136349"]
[WhiteElo "2312"]
[BlackElo "2051"]
[WhiteTeam "RUS"]
[BlackTeam "RUS"]
[WhiteClock "0:00:00"]
[BlackClock "0:00:20"]

1. d4 {[%clk 0:02:05]}  Nf6 {[%clk 0:02:59]} 2. Nf3 {[%clk 0:02:04]}  c5 {[%clk 0:02:59]} 3. d5 {[%clk 0:02:03]}  g6 {[%clk 0:02:56]} 4. c4 {[%clk 0:02:02]}  b5 {[%clk 0:02:55]} 5. cxb5 {[%clk 0:02:02]}  a6 {[%clk 0:02:55]} 6. b6 {[%clk 0:02:01]}  Bg7 {[%clk 0:02:54]} 7. Nc3 {[%clk 0:02:02]}  d6 {[%clk 0:02:54]} 8. a4 {[%clk 0:01:59]}  Qxb6 {[%clk 0:02:53]} 9. a5 {[%clk 0:01:59]}  Qb4 {[%clk 0:02:49]} 10. Ra4 {[%clk 0:01:58]}  Qb7 {[%clk 0:02:48]} 11. e4 {[%clk 0:01:57]}  Bd7 {[%clk 0:02:48]} 12. Ra3 {[%clk 0:01:56]}  Bb5 {[%clk 0:02:46]} 13. Rb3 {[%clk 0:01:56]}  O-O {[%clk 0:02:41]} 14. Nxb5 {[%clk 0:01:53]}  axb5 {[%clk 0:02:36]} 15. Rxb5 {[%clk 0:01:54]}  Qc7 {[%clk 0:02:33]} 16. Qa4 {[%clk 0:01:39]}  Na6 {[%clk 0:02:24]} 17. Bd2 {[%clk 0:01:32]}  Nb4 {[%clk 0:02:19]} 18. Be2 {[%clk 0:00:59]}  Nxe4 {[%clk 0:02:15]} 19. Bxb4 {[%clk 0:00:56]}  cxb4 {[%clk 0:02:14]} 20. O-O {[%clk 0:00:57]}  Nf6 {[%clk 0:01:35]} 21. Qxb4 {[%clk 0:00:54]}  Rfb8 {[%clk 0:01:31]} 22. Ra1 {[%clk 0:00:51]}  Nxd5 {[%clk 0:01:25]} 23. Qb3 {[%clk 0:00:44]}  Rxb5 {[%clk 0:01:17]} 24. Qxb5 {[%clk 0:00:44]}  e6 {[%clk 0:01:17]} 25. a6 {[%clk 0:00:43]}  Qb6 {[%clk 0:01:09]} 26. Qxb6 {[%clk 0:00:35]}  Nxb6 {[%clk 0:01:08]} 27. Ra2 {[%clk 0:00:35]}  Ra7 {[%clk 0:01:07]} 28. b4 {[%clk 0:00:34]}  d5 {[%clk 0:01:01]} 29. b5 {[%clk 0:00:34]}  Bf8 {[%clk 0:01:00]} 30. Rc2 {[%clk 0:00:33]}  Bb4 {[%clk 0:00:54]} 31. Rc6 {[%clk 0:00:33]}  Ba5 {[%clk 0:00:54]} 32. Ne5 {[%clk 0:00:32]}  f6 {[%clk 0:00:51]} 33. Ng4 {[%clk 0:00:31]}  Kf7 {[%clk 0:00:48]} 34. h4 {[%clk 0:00:30]}  d4 {[%clk 0:00:45]} 35. Bd3 {[%clk 0:00:28]}  Nd5 {[%clk 0:00:37]} 36. Bc4 {[%clk 0:00:26]}  d3 {[%clk 0:00:30]} 37. Bxd3 {[%clk 0:00:25]}  Nb4 {[%clk 0:00:29]} 38. b6 {[%clk 0:00:22]}  Nxc6 {[%clk 0:00:27]} 39. bxa7 {[%clk 0:00:21]}  Nxa7 {[%clk 0:00:27]} 40. Bc4 {[%clk 0:00:21]}  Ke7 {[%clk 0:00:26]} 41. Ne3 {[%clk 0:00:20]}  Bb6 {[%clk 0:00:25]} 42. Nc2 {[%clk 0:00:19]}  Kd6 {[%clk 0:00:25]} 43. Be2 {[%clk 0:00:18]}  e5 {[%clk 0:00:25]} 44. g3 {[%clk 0:00:18]}  Bc5 {[%clk 0:00:25]} 45. Kg2 {[%clk 0:00:18]}  Kd5 {[%clk 0:00:26]} 46. Ne1 {[%clk 0:00:18]}  e4 {[%clk 0:00:26]} 47. h5 {[%clk 0:00:17]}  Kd4 {[%clk 0:00:25]} 48. Nc2+ {[%clk 0:00:16]}  Kc3 {[%clk 0:00:25]} 49. Ne3 {[%clk 0:00:13]}  Kd2 {[%clk 0:00:25]} 50. h6 {[%clk 0:00:08]}  Kxe2 {[%clk 0:00:25]} 51. Ng4 {[%clk 0:00:08]}  f5 {[%clk 0:00:24]} 52. Nf6 {[%clk 0:00:08]}  Bxf2 {[%clk 0:00:25]} 53. Nxh7 {[%clk 0:00:07]}  Bd4 {[%clk 0:00:26]} 54. Ng5 {[%clk 0:00:06]}  Kd2 {[%clk 0:00:25]} 55. Ne6 {[%clk 0:00:05]}  Bh8 {[%clk 0:00:24]} 56. Nf4 {[%clk 0:00:04]}  e3 {[%clk 0:00:24]} 57. Kf3 {[%clk 0:00:02]}  g5 {[%clk 0:00:23]} 58. Ne2 {[%clk 0:00:01]}  f4 {[%clk 0:00:21]} 59. gxf4 {[%clk 0:00:00]}  g4+ {[%clk 0:00:20]} 0-1

[Event "December 12 Early 2023"]
[Site "https://www.chess.com"]
[Date "2023.12.12"]
[Round "8"]
[White "Reinecke, Katharina"]
[Black "Schut, Han"]
[Result "1-0"]
[Board "159"]
[TimeControl "180+1"]
[WhiteFideId "12929727"]
[BlackFideId "1005561"]
[WhiteElo "2011"]
[BlackElo "2283"]
[WhiteTeam "GER"]
[BlackTeam "NED"]
[WhiteClock "0:00:13"]
[BlackClock "0:00:05"]

1. d4 {[%clk 0:03:00]}  Nf6 {[%clk 0:02:52]} 2. c4 {[%clk 0:02:52]}  g6 {[%clk 0:02:52]} 3. Nf3 {[%clk 0:02:51]}  Bg7 {[%clk 0:02:52]} 4. g3 {[%clk 0:02:49]}  O-O {[%clk 0:02:52]} 5. Bg2 {[%clk 0:02:49]}  d5 {[%clk 0:02:53]} 6. cxd5 {[%clk 0:02:47]}  Nxd5 {[%clk 0:02:54]} 7. O-O {[%clk 0:02:47]}  c5 {[%clk 0:02:53]} 8. e3 {[%clk 0:02:39]}  cxd4 {[%clk 0:02:51]} 9. Nxd4 {[%clk 0:02:39]}  a6 {[%clk 0:02:41]} 10. Qe2 {[%clk 0:02:18]}  Nb6 {[%clk 0:02:25]} 11. Rd1 {[%clk 0:02:13]}  Qc7 {[%clk 0:02:26]} 12. Nc3 {[%clk 0:02:11]}  e5 {[%clk 0:02:25]} 13. Nb3 {[%clk 0:01:51]}  Be6 {[%clk 0:02:22]} 14. Bd2 {[%clk 0:01:47]}  Nc4 {[%clk 0:02:21]} 15. Rab1 {[%clk 0:01:35]}  Nc6 {[%clk 0:02:14]} 16. Nc5 {[%clk 0:01:18]}  Bf5 {[%clk 0:01:45]} 17. Qxc4 {[%clk 0:01:08]}  Bxb1 {[%clk 0:01:43]} 18. Nxb1 {[%clk 0:01:04]}  Rfd8 {[%clk 0:01:27]} 19. Nb3 {[%clk 0:00:52]}  Rac8 {[%clk 0:01:25]} 20. Qe2 {[%clk 0:00:50]}  f5 {[%clk 0:01:10]} 21. Bc3 {[%clk 0:00:50]}  e4 {[%clk 0:01:08]} 22. Bxg7 {[%clk 0:00:45]}  Kxg7 {[%clk 0:01:09]} 23. Nc3 {[%clk 0:00:44]}  Ne5 {[%clk 0:01:05]} 24. Rd4 {[%clk 0:00:38]}  Nd3 {[%clk 0:00:57]} 25. Rxd8 {[%clk 0:00:34]}  Rxd8 {[%clk 0:00:56]} 26. Nd4 {[%clk 0:00:32]}  Kf6 {[%clk 0:00:51]} 27. g4 {[%clk 0:00:32]}  Qb6 {[%clk 0:00:49]} 28. gxf5 {[%clk 0:00:30]}  gxf5 {[%clk 0:00:47]} 29. Qh5 {[%clk 0:00:29]}  Rxd4 {[%clk 0:00:37]} 30. exd4 {[%clk 0:00:25]}  Qxd4 {[%clk 0:00:37]} 31. Qh6+ {[%clk 0:00:20]}  Kf7 {[%clk 0:00:26]} 32. Qxh7+ {[%clk 0:00:19]}  Ke6 {[%clk 0:00:19]} 33. Qg6+ {[%clk 0:00:18]}  Ke7 {[%clk 0:00:17]} 34. Qh7+ {[%clk 0:00:17]}  Kd8 {[%clk 0:00:15]} 35. Qg8+ {[%clk 0:00:16]}  Kc7 {[%clk 0:00:08]} 36. Qf7+ {[%clk 0:00:16]}  Kb8 {[%clk 0:00:08]} 37. Qxf5 {[%clk 0:00:15]}  Nxb2 {[%clk 0:00:07]} 38. Qf4+ {[%clk 0:00:14]}  Ka8 {[%clk 0:00:06]} 39. Qxe4 {[%clk 0:00:13]}  Qxc3 {[%clk 0:00:05]} 40. Qxb7# {[%clk 0:00:13]} 1-0

[Event "December 12 Early 2023"]
[Site "https://www.chess.com"]
[Date "2023.12.12"]
[Round "8"]
[White "Golubenko, Valentina"]
[Black "Santos, Isaque Goncalves"]
[Result "1-0"]
[Board "161"]
[TimeControl "180+1"]
[WhiteFideId "4501993"]
[BlackFideId "2103885"]
[WhiteElo "2248"]
[BlackElo "1837"]
[WhiteTeam "CRO"]
[BlackTeam "BRA"]
[WhiteClock "0:00:50"]
[BlackClock "0:00:00"]

1. e4 {[%clk 0:03:00]}  e6 {[%clk 0:02:59]} 2. d4 {[%clk 0:03:00]}  d5 {[%clk 0:02:58]} 3. exd5 {[%clk 0:03:00]}  exd5 {[%clk 0:02:57]} 4. Nf3 {[%clk 0:03:01]}  Bd6 {[%clk 0:02:57]} 5. c4 {[%clk 0:03:01]}  c6 {[%clk 0:02:56]} 6. Nc3 {[%clk 0:03:00]}  Ne7 {[%clk 0:02:55]} 7. cxd5 {[%clk 0:03:00]}  cxd5 {[%clk 0:02:55]} 8. Bd3 {[%clk 0:03:00]}  O-O {[%clk 0:02:55]} 9. h3 {[%clk 0:03:00]}  Nbc6 {[%clk 0:02:55]} 10. O-O {[%clk 0:03:00]}  Bf5 {[%clk 0:02:54]} 11. a3 {[%clk 0:02:50]}  Qd7 {[%clk 0:02:43]} 12. Re1 {[%clk 0:02:37]}  a6 {[%clk 0:02:41]} 13. Ne5 {[%clk 0:02:37]}  Qc8 {[%clk 0:02:14]} 14. Nxc6 {[%clk 0:01:56]}  bxc6 {[%clk 0:02:04]} 15. Qf3 {[%clk 0:01:46]}  Bxd3 {[%clk 0:01:57]} 16. Qxd3 {[%clk 0:01:45]}  Qf5 {[%clk 0:01:55]} 17. Qe3 {[%clk 0:01:25]}  Ng6 {[%clk 0:01:53]} 18. Bd2 {[%clk 0:01:17]}  Rfe8 {[%clk 0:01:31]} 19. Qxe8+ {[%clk 0:01:15]}  Rxe8 {[%clk 0:01:30]} 20. Rxe8+ {[%clk 0:01:16]}  Nf8 {[%clk 0:01:29]} 21. Rae1 {[%clk 0:01:09]}  f6 {[%clk 0:01:24]} 22. Rd8 {[%clk 0:00:56]}  Bc7 {[%clk 0:01:14]} 23. Ra8 {[%clk 0:00:54]}  Qd3 {[%clk 0:00:55]} 24. Ree8 {[%clk 0:00:50]}  Bd6 {[%clk 0:00:00]} 25. Bf4 {[%clk 0:00:50]} 1-0

[Event "December 12 Early 2023"]
[Site "https://www.chess.com"]
[Date "2023.12.12"]
[Round "8"]
[White "Olcayoz, Gizem"]
[Black "Yushko, Olga"]
[Result "1-0"]
[Board "162"]
[TimeControl "180+1"]
[WhiteFideId "6301444"]
[BlackFideId "14114500"]
[WhiteElo "2024"]
[BlackElo "2110"]
[WhiteTeam "TUR"]
[BlackTeam "UKR"]
[WhiteClock "0:00:03"]
[BlackClock "0:00:34"]

1. e4 {[%clk 0:03:00]}  e6 {[%clk 0:02:45]} 2. d4 {[%clk 0:02:59]}  d5 {[%clk 0:02:45]} 3. Nc3 {[%clk 0:03:00]}  Nf6 {[%clk 0:02:45]} 4. e5 {[%clk 0:03:00]}  Nfd7 {[%clk 0:02:46]} 5. Nce2 {[%clk 0:03:00]}  c5 {[%clk 0:02:47]} 6. c3 {[%clk 0:03:01]}  Nc6 {[%clk 0:02:47]} 7. Nf3 {[%clk 0:03:02]}  Qb6 {[%clk 0:02:48]} 8. a3 {[%clk 0:03:02]}  cxd4 {[%clk 0:02:48]} 9. cxd4 {[%clk 0:03:01]}  Be7 {[%clk 0:02:48]} 10. h4 {[%clk 0:03:01]}  O-O {[%clk 0:02:48]} 11. Nf4 {[%clk 0:03:01]}  f6 {[%clk 0:02:33]} 12. Nxe6 {[%clk 0:02:58]}  Rf7 {[%clk 0:02:34]} 13. Nf4 {[%clk 0:02:37]}  fxe5 {[%clk 0:02:29]} 14. Nxd5 {[%clk 0:02:37]}  Qa5+ {[%clk 0:02:28]} 15. Nc3 {[%clk 0:02:37]}  exd4 {[%clk 0:02:27]} 16. Nxd4 {[%clk 0:02:35]}  Nxd4 {[%clk 0:02:26]} 17. Qxd4 {[%clk 0:02:36]}  Bf6 {[%clk 0:02:26]} 18. Qb4 {[%clk 0:01:42]}  Qe5+ {[%clk 0:02:17]} 19. Qe4 {[%clk 0:01:37]}  Qc5 {[%clk 0:02:13]} 20. Bc4 {[%clk 0:01:29]}  Bxc3+ {[%clk 0:02:09]} 21. bxc3 {[%clk 0:01:29]}  Qxf2+ {[%clk 0:02:09]} 22. Kd1 {[%clk 0:01:28]}  Nf6 {[%clk 0:02:03]} 23. Bxf7+ {[%clk 0:01:23]}  Kxf7 {[%clk 0:02:04]} 24. Qc4+ {[%clk 0:01:11]}  Be6 {[%clk 0:02:03]} 25. Qc7+ {[%clk 0:00:51]}  Ke8 {[%clk 0:01:48]} 26. Bd2 {[%clk 0:00:17]}  Rd8 {[%clk 0:01:43]} 27. Ra2 {[%clk 0:00:17]}  Bb3+ {[%clk 0:01:23]} 28. Kc1 {[%clk 0:00:11]}  Ne4 {[%clk 0:01:18]} 29. Re1 {[%clk 0:00:06]}  Qxe1+ {[%clk 0:01:09]} 30. Bxe1 {[%clk 0:00:06]}  Bxa2 {[%clk 0:01:09]} 31. Qe5+ {[%clk 0:00:05]}  Kf7 {[%clk 0:01:04]} 32. Qxe4 {[%clk 0:00:06]}  Bd5 {[%clk 0:01:02]} 33. Qf4+ {[%clk 0:00:05]}  Kg8 {[%clk 0:01:01]} 34. Bd2 {[%clk 0:00:06]}  Bxg2 {[%clk 0:00:58]} 35. Qg5 {[%clk 0:00:06]}  Rf8 {[%clk 0:00:56]} 36. Qxg2 {[%clk 0:00:05]}  b6 {[%clk 0:00:54]} 37. Kc2 {[%clk 0:00:05]}  Rd8 {[%clk 0:00:51]} 38. Qe4 {[%clk 0:00:05]}  h6 {[%clk 0:00:50]} 39. Qe6+ {[%clk 0:00:05]}  Kf8 {[%clk 0:00:51]} 40. Qf5+ {[%clk 0:00:05]}  Ke7 {[%clk 0:00:51]} 41. Qg6 {[%clk 0:00:04]}  Kf8 {[%clk 0:00:50]} 42. Qf5+ {[%clk 0:00:03]}  Ke7 {[%clk 0:00:50]} 43. Qg6 {[%clk 0:00:03]}  Kf8 {[%clk 0:00:49]} 44. Be3 {[%clk 0:00:04]}  Re8 {[%clk 0:00:47]} 45. Bd4 {[%clk 0:00:04]}  Re7 {[%clk 0:00:46]} 46. Kd3 {[%clk 0:00:04]}  Rf7 {[%clk 0:00:45]} 47. h5 {[%clk 0:00:04]}  Rf3+ {[%clk 0:00:45]} 48. Kc4 {[%clk 0:00:05]}  Rf7 {[%clk 0:00:45]} 49. Kb5 {[%clk 0:00:04]}  Rd7 {[%clk 0:00:39]} 50. Ka6 {[%clk 0:00:04]}  Rf7 {[%clk 0:00:38]} 51. a4 {[%clk 0:00:04]}  Rd7 {[%clk 0:00:38]} 52. Bxg7+ {[%clk 0:00:04]}  Rxg7 {[%clk 0:00:38]} 53. Qxh6 {[%clk 0:00:03]}  Kg8 {[%clk 0:00:34]} 54. Qxg7+ {[%clk 0:00:03]} 1-0

[Event "December 12 Early 2023"]
[Site "https://www.chess.com"]
[Date "2023.12.12"]
[Round "8"]
[White "MasterofMasters2006"]
[Black "Herman, Daniel"]
[Result "0-1"]
[Board "163"]
[TimeControl "180+1"]
[BlackFideId "30935008"]
[WhiteElo "2054"]
[BlackElo "2431"]
[BlackTeam "USA"]
[WhiteClock "0:00:03"]
[BlackClock "0:00:06"]

1. d4 {[%clk 0:03:00]}  g6 {[%clk 0:02:58]} 2. c4 {[%clk 0:03:00]}  Bg7 {[%clk 0:02:59]} 3. Nf3 {[%clk 0:02:55]}  d6 {[%clk 0:02:59]} 4. Nc3 {[%clk 0:02:55]}  Nf6 {[%clk 0:02:59]} 5. e4 {[%clk 0:02:55]}  O-O {[%clk 0:02:59]} 6. Be2 {[%clk 0:02:55]}  e5 {[%clk 0:03:00]} 7. d5 {[%clk 0:02:54]}  a5 {[%clk 0:02:59]} 8. h3 {[%clk 0:02:50]}  Na6 {[%clk 0:02:58]} 9. g4 {[%clk 0:02:50]}  Nc5 {[%clk 0:02:57]} 10. Nd2 {[%clk 0:02:45]}  c6 {[%clk 0:02:51]} 11. h4 {[%clk 0:02:42]}  a4 {[%clk 0:02:44]} 12. h5 {[%clk 0:02:31]}  Qb6 {[%clk 0:02:32]} 13. g5 {[%clk 0:02:24]}  Ne8 {[%clk 0:02:23]} 14. Nf3 {[%clk 0:02:07]}  Bg4 {[%clk 0:02:11]} 15. h6 {[%clk 0:01:56]}  Bh8 {[%clk 0:02:10]} 16. Qc2 {[%clk 0:01:52]}  f5 {[%clk 0:02:08]} 17. Be3 {[%clk 0:01:39]}  fxe4 {[%clk 0:02:00]} 18. Nd2 {[%clk 0:01:39]}  Bf5 {[%clk 0:01:54]} 19. Ndxe4 {[%clk 0:01:36]}  cxd5 {[%clk 0:01:44]} 20. Nxd5 {[%clk 0:01:23]}  Qd8 {[%clk 0:01:33]} 21. Bxc5 {[%clk 0:01:23]}  dxc5 {[%clk 0:01:33]} 22. Bd3 {[%clk 0:01:22]}  Bxe4 {[%clk 0:01:26]} 23. Bxe4 {[%clk 0:01:22]}  Qxg5 {[%clk 0:01:27]} 24. Nb6 {[%clk 0:01:02]}  Rd8 {[%clk 0:01:16]} 25. Bd5+ {[%clk 0:01:02]}  Rxd5 {[%clk 0:01:17]} 26. Nxd5 {[%clk 0:01:03]}  Nd6 {[%clk 0:01:10]} 27. Qxa4 {[%clk 0:00:47]}  Ne4 {[%clk 0:00:40]} 28. f4 {[%clk 0:00:44]}  Qg3+ {[%clk 0:00:37]} 29. Ke2 {[%clk 0:00:18]}  Qf2+ {[%clk 0:00:23]} 30. Kd3 {[%clk 0:00:18]}  Nd6 {[%clk 0:00:12]} 31. Qd7 {[%clk 0:00:09]}  Qd4+ {[%clk 0:00:10]} 32. Ke2 {[%clk 0:00:04]}  Qxc4+ {[%clk 0:00:10]} 33. Kf2 {[%clk 0:00:04]}  Qd4+ {[%clk 0:00:09]} 34. Ne3 {[%clk 0:00:03]}  Rxf4+ {[%clk 0:00:07]} 35. Ke2 {[%clk 0:00:03]}  Qxb2+ {[%clk 0:00:06]} 36. Kd3 {[%clk 0:00:03]}  e4# {[%clk 0:00:06]} 0-1